Cogmind - Beta 15 @@@ ROGUE MODE // 2025.07.19 @ 12:02:21 Player: shapeshifter Result: Destroyed by FL-5EI(R) with Subdweller Laser Performance ------------- Evolutions (0) 0 Regions Visited (2) 400 Robots Destroyed (11) 55 Value Destroyed (295) 295 Prototype IDs (0) 0 Alien Tech Used (0) 0 Bonus (0) 0 TOTAL SCORE: 750 Bonus ------- None Cogmind --------- Core Integrity 0/250 Matter 295/300 Energy 100/100 System Corruption 0% Temperature Cool (6) Movement Core (350) Ox6 Location -10/Subcaves Parts ------- > --- POWER (1) -------- (None) > --- PROPULSION (2) --- (None) > --- UTILITY (2) ------ Improved Heat Sink Large Storage Unit > --- WEAPON (2) ------- (None) > --- INVENTORY (15) --- Light Ion Engine Light Nuclear Core High-capacity Matter Pod (200) Subdweller Optics Weapon Shielding Scrap Shield Light Assault Rifle Peak State ------------ > --- POWER ------------ Ion Engine > --- PROPULSION ------- Light Treads Light Treads > --- UTILITY ---------- Improved Heat Sink Large Storage Unit > --- WEAPON ----------- Subdweller Beam Cannon Makeshift Shrapnel Gun > --- INVENTORY -------- Light Ion Engine Light Nuclear Core High-capacity Matter Pod Subdweller Optics Weapon Shielding Scrap Shield Light Assault Rifle [Rating: 14] Favorites ----------- Power Ion Engine Engine Ion Engine Propulsion Light Treads Treads Light Treads Utility Large Storage Unit Device Improved Heat Sink Storage Large Storage Unit Weapon Light Assault Rifle Energy Cannon Subdweller Beam Cannon Ballistic Gun Light Assault Rifle Build | -11 -10 -10 ------- Run | Yrd Mat Sub Slots Evolved . | . . . Power . | . . . Propulsion . | . . . Utility . | . . . Weapon . | . . . Parts Attached 12 | 7 3 2 Power 1 | 1 . . Engine 1 | 1 . . Core . | . . . Reactor . | . . . Propulsion 2 | 2 . . Treads 2 | 2 . . Leg . | . . . Wheel . | . . . Hover . | . . . Flight . | . . . Utility 4 | 2 2 . Device 2 | 1 1 . Storage 2 | 1 1 . Processor . | . . . Hackware . | . . . Protection . | . . . Artifact . | . . . Weapon 5 | 2 1 2 Energy Gun . | . . . Energy Cannon 1 | . . 1 Ballistic Gun 4 | 2 1 1 Ballistic Cannon . | . . . Launcher . | . . . Special Weapon . | . . . Impact Weapon . | . . . Slashing Weapon . | . . . Piercing Weapon . | . . . Special Melee Weapon . | . . . Unidentified Prototypes . | . . . Parts Lost 7 | . 2 5 Power 1 | . . 1 Propulsion 2 | . . 2 Utility 1 | . 1 . Weapon 3 | . 1 2 Highest Loss Streak 5 | . 1 5 To Critical Strikes . | . . . Average Backups 4 | 2 4 6 Power 1 | . 1 2 Propulsion . | . . . Utility 2 | . 2 3 Weapon . | . . . Tool/Special . | . . . Unused Backups 6 | . . 6 Power 2 | . . 2 Propulsion . | . . . Utility 4 | . . 4 Weapon . | . . . Tool/Special . | . . . Average Slot Usage (%) 88 | . 88 89 Engine 13 | . 14 13 Treads 26 | . 28 22 Device 7 | . 4 14 Storage 14 | . 14 14 Energy Cannon 1 | . . 6 Ballistic Gun 24 | . 26 18 Peak Build Rating 14 | 7 9 14 Average Rating 7 | 5 7 11 On Entrance 5 | . 7 9 Naked Turns . | . . . Heaviest Build 36 | 13 28 36 Greatest Support 40 | 40 40 40 Greatest Overweight (x) 9 | . . 9 Average Overweight (x) . | . . . Largest Inventory Capacity 15 | 8 15 15 Average Capacity 11 | 7 11 15 Most Carried 9 | 4 7 9 Average Carried 4 | 2 4 7 Final Capacity 15 | 8 15 15 Final Carried 8 | 2 4 8 Class Distribution -------------------- 100% | Mutant Dominant Class ---------------- Mutant | -10/Materials Mutant | -10/Subcaves Resources | -11 -10 -10 ----------- Run | Yrd Mat Sub Matter Collected 614 | 263 225 126 Remotely . | . . . Salvage Created 370 | 41 329 . Parts 21 | 5 16 . Haulers Intercepted . | . . . Recyclers Shooed 2 | 1 1 . Parts Field Recycled . | . . . Retrieved Matter . | . . . Parts Self-Destructed . | . . . Prevented . | . . . Kills | -11 -10 -10 ------- Run | Yrd Mat Sub Combat Hostiles Destroyed 7 | . 7 . Guns 7 | . 7 . Classes Destroyed 4 | 1 3 . Worker 1 | . 1 . Tunneler 2 | 2 . . Watcher 1 | . 1 . Grunt 7 | . 7 . Best Kill Streak 2 | 1 2 . Combat Bots Only 2 | . 2 . Max Kills in Single Turn 2 | 1 2 . Gunslinging 1 | . 1 . Exploded . | . . . Melee . | . . . Uniques/NPCs Destroyed . | . . . Combat | -11 -10 -10 -------- Run | Yrd Mat Sub Hostile Shots Fired 87 | . 52 35 Missed 16 | . 7 9 Hits 71 | . 45 26 Projectile 71 | . 45 26 Critical Strikes 1 | . 1 . Damage Taken 1122 | . 587 535 Core 261 | . 97 164 Absorbed by Shields . | . . . Core Remaining (%) 100 | 100 . . Volleys Fired 71 | 9 57 5 Largest 2 | 2 2 2 Hottest 104 | 40 40 104 Shots Fired 123 | 18 97 8 Gun 120 | 18 97 5 Cannon 3 | . . 3 Launcher . | . . . Special . | . . . Kinetic 120 | 18 97 5 Thermal 3 | . . 3 Explosive . | . . . Electromagnetic . | . . . Robot Hit Streak 12 | 5 9 12 Robot Miss Streak 4 | 2 4 2 Penetration Max . | . . . Secondary Targets 1 | . 1 . Max Gunslinging Chain 1 | . 1 . Shots Hit Robots 75 | 12 56 7 Core Hits 31 | 5 26 . Critical Kills 2 | 1 1 . Critical Parts Destroyed 1 | . 1 . Critical Strikes 3 | 1 2 . Destroy 3 | 1 2 . Melee Attacks . | . . . Impact . | . . . Slashing . | . . . Piercing . | . . . Sneak Attacks . | . . . Combat Hostiles . | . . . Follow-up Attacks . | . . . Damage Inflicted 807 | 112 504 191 Guns 745 | 112 498 135 Cannons 56 | . . 56 Explosions . | . . . Melee . | . . . Ramming 6 | . 6 . Kinetic 745 | 112 498 135 Thermal 56 | . . 56 Explosive . | . . . Electromagnetic . | . . . Impact . | . . . Slashing . | . . . Piercing . | . . . Highest Corruption . | . . . Average Corruption . | . . . Corruption Purged . | . . . Corruption Blocked . | . . . Overload Shots . | . . . Overflow Damage . | . . . Projectiles . | . . . Explosions . | . . . Melee . | . . . Knockbacks . | . . . Impact . | . . . Kinetic . | . . . Secondary . | . . . Self-Inflicted Damage . | . . . Shots . | . . . Rammed 3 | . 3 . Targets Rammed 3 | . 3 . Kicked . | . . . Crushed . | . . . Highest Temperature 18 | . 18 . Average Temperature 8 | . 8 . Received Heat Transfer 474 | . 348 126 Siege Activations . | . . . Martial Activations . | . . . Shielding Activations . | . . . Robots Disrupted . | . . . Combat Hostiles . | . . . Robots Corrupted . | . . . Combat Hostiles . | . . . Parts Fried . | . . . Impact Corruptions . | . . . Robots Melted . | . . . Combat Hostiles . | . . . Parts Melted . | . . . Heat Transferred 74 | . . 74 Parts Sabotaged . | . . . Parts Stolen . | . . . Parts Stripped . | . . . Power Chain Reactions . | . . . Alert | -11 -10 -10 ------- Run | Yrd Mat Sub Maximum Alert Level . | . . . Low Security (%) 100 | 100 100 . Level 1 . | . . . Level 2 . | . . . Level 3 . | . . . Level 4 . | . . . Level 5 . | . . . High Security . | . . . Max Security . | . . . Peak Influence 70 | 5 70 . Initial . | . . . Average 23 | . 28 . Influence Increases 232 | 10 222 . Destroy 0b10 Robot/C 140 | . 140 . Destroy 0b10 Robot/NC 20 | 10 10 . Destroy Leader 42 | . 42 . Lose Combat Pursuer 30 | . 30 . Influence Decreases 232 | 10 222 . Time Decay 222 | 10 212 . Lost Part 10 | . 10 . Squads Dispatched 3 | . 3 . Investigation 1 | . 1 . Extermination . | . . . Reinforcement 2 | . 2 . Assault . | . . . Garrison . | . . . Intercept . | . . . Searches Triggered . | . . . Construction Impeded . | . . . Haulers Reinforced . | . . . Active Scanning Responses . | . . . Cargo Convoy Interrupts . | . . . Stealth | -11 -10 -10 --------- Run | Yrd Mat Sub Distress Signals 2 | . 2 . Communications Jammed . | . . . Distress Signals . | . . . Times Spotted 26 | . 18 8 Peak Tracking Total 6 | . 4 6 Tactical Retreats 2 | . 2 . Traps | -11 -10 -10 ------- Run | Yrd Mat Sub Traps Triggered . | . . . Indirectly . | . . . Trap Hack Attempts . | . . . Triggered . | . . . Disarmed . | . . . Reprogrammed . | . . . Reused . | . . . Traps Extracted . | . . . Installed . | . . . Triggered . | . . . Machines | -11 -10 -10 ---------- Run | Yrd Mat Sub Machines Disabled . | . . . Max in Single Turn . | . . . Machines Repaired . | . . . Machines Dismantled . | . . . Machines Sabotaged . | . . . Overloaded Fab Kills . | . . . Hacking | -11 -10 -10 --------- Run | Yrd Mat Sub Machines Accessed 3 | . 3 . Terminals 2 | . 2 . Fabricators . | . . . Repair Stations . | . . . Recycling Units 1 | . 1 . Scanalyzers . | . . . Garrison Access . | . . . Total Hacks 9 | . 9 . Successful 3 | . 3 . Failed 6 | . 6 . Catastrophic 2 | . 2 . Database Lockouts . | . . . Manual . | . . . Terminals 4 | . 4 . Fabricators . | . . . Repair Stations . | . . . Recycling Units 5 | . 5 . Scanalyzers . | . . . Garrison Access . | . . . Terminal Hacks 1 | . 1 . Recall Investigation 1 | . 1 . Fabricator Hacks . | . . . Repair Station Hacks . | . . . Recycling Unit Hacks 2 | . 2 . Retrieve Components 2 | . 2 . Scanalyzer . | . . . Garrison Access Hacks . | . . . Unauthorized Hacks . | . . . Terminals . | . . . Fabricators . | . . . Repair Stations . | . . . Recycling Units . | . . . Scanalyzers . | . . . Garrison Access . | . . . Data Cores Recovered . | . . . Used . | . . . Hacking Detections 2 | . 2 . Full Trace Events 1 | . 1 . Feedback Events . | . . . Feedback Blocked . | . . . Robot Schematics Acquired . | . . . Robots Built . | . . . Authchips . | . . . Time . | . . . Total Robot Build Rating . | . . . Part Schematics Acquired . | . . . Parts Built . | . . . Authchips . | . . . Time . | . . . Total Part Build Rating . | . . . Parts Repaired . | . . . Time . | . . . Parts Recycled . | . . . Recycled Matter . | . . . Retrieved Matter . | . . . Retrieved Components . | . . . Parts Scanalyzed . | . . . Part Schematics Acquired . | . . . Parts Damaged . | . . . Bothacking | -11 -10 -10 ------------ Run | Yrd Mat Sub Used RIF Installer . | . . . Robots Hacked . | . . . Non-combat . | . . . Combat . | . . . Robot Hacks Applied . | . . . Relay Couplers Released . | . . . Fabnet Peak Effective % . | . . . Robots Rewired . | . . . Allies Hacked . | . . . Hacks Repelled . | . . . Allies | -11 -10 -10 -------- Run | Yrd Mat Sub Total Allies . | . . . Largest Group . | . . . Highest-Rated Group . | . . . Highest-Rated Ally . | . . . Total Orders . | . . . Ally Attacks . | . . . Total Damage . | . . . Kills . | . . . Allies Corrupted . | . . . Allies Melted . | . . . Intel | -11 -10 -10 ------- Run | Yrd Mat Sub Active Infowar (turns) 35 | 7 28 . Seismic 35 | 7 28 . Robot Analysis Total . | . . . Derelict Logs Recovered . | . . . Drone Launches . | . . . Drone Recoveries . | . . . Exploration | -11 -10 -10 ------------- Run | Yrd Mat Sub Turns Passed 924 | 130 594 200 Spaces Moved 351 | 63 190 98 Core 13 | 8 . 5 Treads 338 | 55 190 93 Legs . | . . . Wheels . | . . . Hover . | . . . Flight . | . . . Fastest Speed 50 | 50 160 160 Average Speed 163 | 146 160 182 Slowest Speed 500 | 160 160 500 Overloaded Moves . | . . . Propulsion Burnouts . | . . . Robots Hopped . | . . . Potential Cave-ins . | . . . Cave-ins Triggered . | . . . Exploration Rate (%) 22 | 4 56 6 Regions Visited 2 Branch Regions 1 Pre-discovered Areas . | . . . Known Exits Taken . | . . . Unknown Exits Taken 2 | 1 1 . Scrap Searched 2 | . . 2 Spaces Dug . | . . . Terrain Destroyed . | . . . Melee . | . . . Projectile . | . . . AOE . | . . . Terrain Rammed . | . . . Walls Destroyed . | . . . Machines Disabled . | . . . Actions | -11 -10 -10 --------- Run | Yrd Mat Sub Total 600 | 87 401 112 Wait 143 | . 143 . Move 349 | 62 189 98 Hop . | . . . Pick Up 19 | 9 5 5 Fast Attach . | . . . Attach 9 | 7 2 . Detach . | . . . Swap 3 | . 1 2 Drop 3 | . 1 2 Fire 71 | 9 57 5 Melee . | . . . Ram . | . . . Kick . | . . . Crush 3 | . 3 . Escape Stasis . | . . . Rewire . | . . . Trap . | . . . Miscellaneous . | . . . Route ------- -11/Scrapyard -10/Materials (discovered 2 exits: [*Mat] / [*Sub]) -10/Subcaves History --------- Turn | Location | Event 2 | -11/Scrapyard | Met Revision 17 3 | -11/Scrapyard | Discovered new exit (range 16) 131 | -11/Scrapyard | Entered Materials 316 | -10/Materials | Build established: Mutant 530 | -10/Materials | Discovered new exit (range 16) 706 | -10/Materials | Discovered new exit (range 10) 725 | -10/Materials | Entered Subcaves 857 | -10/Subcaves | Ambushed by swarm of Subdwellers 903 | -10/Subcaves | Core integrity fell below 50% 922 | -10/Subcaves | Core integrity fell below 20% 925 | -10/Subcaves | Destroyed by FL-5EI(R) with Subdweller Laser Last Messages --------------- 00859_ 6Y-572(R) emerges from the Twisted Machinery. 00859_ L4-L9X(R) emerges from the Twisted Machinery. 00861_ 0K-O2H(R) emerges from the Twisted Machinery. 00861_ HV Slug penetrates 6Y-572(R). 00865_ XM-XL7(g): "Sorry we're late! Had another grouchy Sub to deal with. Who's the new fellow?" 00865_ 6Y-572(R) suffers critical hit (Destroy). 00865_ 6Y-572(R) destroyed. 00866_ Lgt. Treads destroyed. 00882_ L4-L9X(R) destroyed. 00885_ XM-XL7(g) destroyed. 00896_ Lgt. Treads destroyed. 00898_ Sub. Beam Cannon destroyed. 00908_ Mak. Shrapnel Gun destroyed. 00911_ Subatomizers dissect the Imp. Heat Sink. 00916_ Ion Engine destroyed. Map ----- +----------------------------------------------------+ | ??????????????????????????????????????????????? | | ??????????????????????????????????????????????? | | ??????????????????????????????????????????????? | | ??????????????????????????????????????????????? | | ???????????????? ????????????????????????????? | | ???????????????? #???????????????????????????? | | ?????????????? ? %## ???????????????????????? | | ?????????????? ? ????????????????????????? | | ?????????????? ? ????????????????????????? | | ?????????????? # ?????????????????????????? | | ??????????????# % ?????????????????????????? | | ??????????????# #?#???????????????????????? | | ??????????????# #? #??????????????????????? | | ??????????????# ??? #?????????????????????? | | ?????????????## % ??? ##???????????????????? | | ??????????####% "????? ##??????????????????? | | ??????????# % ?????? ##?????????????????? | | ??????????# ]! #??????# ##????????????????? | | ??????????# &%!#?????## ##???????????????? | | ?????????## & ##???##RRR #???????????????? | | ????????## #???# #???????????????? | | ????????# ! #??## #???????????????? | | ????????# !&%;;### ## ##???????????????? | | ????????# #*=%& #?##????????????????? | | ????????# ##%!&## ##??????????????????? | | ????????# ####& "## @ #??????????????????? | | ????????## ??## ### #??????????????????? | | ?????????# ??# " #?# #??????????????????? | | ?????????## ??# % "#? #??????????????????? | | ??????????####??# & ## ##??????????????????? | | ???????????????##"&%&### #???????????????????? | | ???????????????#"" #### #???????????????????? | | ???????????????#" & ""; ##??????????????????? | | ???????????????#" &%! ; #??????????????????? | | ???????????????#" ##??????????????????? | | ???????????????#" " ###???????????????????? | | ???????????????#""" "";###????????????????????? | | ???????????????## " ##"###??????????????????? | | ???????????????##" # "###????????????????? | | ???????????????#"" " ####?????????????? | | ???????????????#" #?????????????? | | ???????????????#" # #?????????????? | | ???????????????#" ## ## #?????????????? | | ???????????????#" "##### #?????????????? | | ???????????????## #???##?????????????? | | ??????#????####?# ###?????????????????? | | ????# # # ####" #?????????????????? | | ## #?????????????????? | | # ##### ### [ "# #????????????????? | | ????????????###?#" # ""#? ???????????????? | +----------------------------------------------------+ Best States ------------- Heat Dissipation 39 Energy Generation 10 Energy Capacity 250 Matter Stores 300 Matter Capacity 300 Sight Range 16 Terrain Scan Density 10 Evasion (%) 40 Recoil Reduction 2 Item Schematics ----------------- None Robot Schematics ------------------ None Fabricated ------------ Nothing Repaired ---------- Nothing Alien Tech Used ----------------- None Achievements -------------- None Challenges ------------ None Game ------ Seed RefineryAuthchipSink Manual? 0 Play Time 00:09:49 Cumulative 15.1 hours Start 2025.07.19 @ 11:54:54 End 2025.07.19 @ 12:02:21 Sessions 1 Manual Loads 0 Difficulty Rogue Special Mode None Game No. 45 Rogue 45 Adventurer 0 Explorer 0 Win Type - Total 0 Types 0/0/0/0/0/0/0/0/0/0 Lore% 17 Gallery% 18 Achievement% 14 Wizard Run 0 Options --------- Layout 1 ASCII 0 Keyboard 0 Movement Mouse Keybinds 0 Fullscreen 1 Font 24/Smallcaps Map View 50x40 Zoom Use 0% Tactical HUD 1 Map Filters NONE Filters NONE Steam 1 RUN: dd378660-c410-44b0-b43e-57a45ab180d7